Cogmind - Beta 13 @@@ ROGUE MODE // 2024.04.24 @ 18:13:32 Player: AntinDisguise Result: Destroyed by S-10 Pest with Light Assault Rifle Performance ------------- Evolutions (0) 0 Regions Visited (3) 600 Robots Destroyed (14) 70 Value Destroyed (345) 345 Prototype IDs (0) 0 Alien Tech Used (0) 0 Bonus (0) 0 TOTAL SCORE: 1015 Bonus ------- None Cogmind --------- Core Integrity 0/250 Matter 296/300 Energy 196/200 System Corruption 0% Temperature Cool (0) Movement Treading (160) Location -10/Subcaves Parts ------- > --- POWER (1) -------- Subdweller Power Source > --- PROPULSION (2) --- Light Treads Light Treads > --- UTILITY (2) ------ Large Storage Unit Makeshift Light Armor Plating > --- WEAPON (2) ------- Subdweller Laser Subdweller Machine Gun > --- INVENTORY (15) --- Spiked Treads Subdweller Monowheel Subdweller Monowheel Huge Storage Unit Humpback Improved Terrain Scanner Heavy Riot Gun Battle Cannon Rocket Launcher Dirty Datajack (20) Datajack Mining Laser Makeshift Sword Makeshift Spear Peak State ------------ > --- POWER ------------ Subdweller Power Source > --- PROPULSION ------- Subdweller Monowheel Subdweller Monowheel > --- UTILITY ---------- Large Storage Unit Makeshift Light Armor Plating > --- WEAPON ----------- Riot Gun Riot Gun > --- INVENTORY -------- Light Treads Light Treads Huge Storage Unit Structural Scanner Subdweller Optics Improved Terrain Scanner ECM Suite Heavy Riot Gun Subdweller Laser Subdweller Machine Gun Battle Cannon Rocket Launcher Datajack Mining Laser [Rating: 19] Favorites ----------- Power Ion Engine Engine Ion Engine Propulsion Subdweller Monowheel Treads Light Treads Wheel Subdweller Monowheel Utility Large Storage Unit Device ECM Suite Storage Large Storage Unit Protection Makeshift Light Armor Plating Weapon Grenade Launcher Energy Gun Medium Laser Ballistic Gun Assault Rifle Launcher Grenade Launcher Build | -11 -10 -10 -10 ------- Run | Yrd Mat Min Sub Slots Evolved . | . . . . Power . | . . . . Propulsion . | . . . . Utility . | . . . . Weapon . | . . . . Parts Attached 24 | 7 2 5 10 Power 2 | 1 . . 1 Engine 2 | 1 . . 1 Core . | . . . . Reactor . | . . . . Propulsion 7 | 2 . 1 4 Treads 2 | . . . 2 Leg . | . . . . Wheel 5 | 2 . 1 2 Hover . | . . . . Flight . | . . . . Utility 7 | 2 2 2 1 Device 2 | 1 1 . . Storage 4 | 1 1 2 . Processor . | . . . . Hackware . | . . . . Protection 1 | . . . 1 Artifact . | . . . . Weapon 8 | 2 . 2 4 Energy Gun 4 | 1 . . 3 Energy Cannon . | . . . . Ballistic Gun 2 | 1 . . 1 Ballistic Cannon . | . . . . Launcher 2 | . . 2 . Special Weapon . | . . . . Impact Weapon . | . . . . Slashing Weapon . | . . . . Piercing Weapon . | . . . . Special Melee Weapon . | . . . . Unidentified Prototypes . | . . . . Parts Lost 6 | . . 1 5 Power 1 | . . . 1 Propulsion 2 | . . . 2 Utility . | . . . . Weapon 3 | . . 1 2 Highest Loss Streak 4 | . . 1 4 To Critical Strikes . | . . . . Average Slot Usage (%) 96 | . 100 100 94 Engine 10 | . 14 14 8 Treads 5 | . . . 7 Wheel 22 | . 28 28 20 Device 9 | . 14 14 7 Storage 14 | . 14 14 14 Protection 4 | . . . 6 Energy Gun 6 | . 14 8 5 Ballistic Gun 6 | . 14 8 4 Launcher 14 | . . 11 18 Naked Turns . | . . . . Heaviest Build 37 | 15 31 33 37 Greatest Support 40 | 26 26 32 40 Greatest Overweight (x) 1 | 1 1 1 1 Average Overweight (x) . | . . 1 . Largest Inventory Capacity 25 | 8 15 25 15 Average Capacity 14 | 6 11 15 15 Most Carried 15 | 5 8 9 15 Average Carried 9 | 2 4 7 11 Final Capacity 15 | 8 15 15 15 Final Carried 15 | 2 8 8 15 Class Distribution -------------------- 96% | Mutant 3% | Derelict-Mutant Dominant Class ---------------- Mutant | -10/Materials Mutant | -10/Mines Mutant | -10/Subcaves Resources | -11 -10 -10 -10 ----------- Run | Yrd Mat Min Sub Matter Collected 819 | 285 3 198 333 Remotely . | . . . . Salvage Created 538 | 117 15 74 332 Parts 32 | 6 2 5 19 Haulers Intercepted . | . . . . Recyclers Shooed . | . . . . Parts Field Recycled . | . . . . Retrieved Matter . | . . . . Parts Self-Destructed 3 | . . . 3 Prevented . | . . . . Kills | -11 -10 -10 -10 ------- Run | Yrd Mat Min Sub Combat Hostiles Destroyed 18 | . . 10 8 Guns 7 | . . 3 4 AOE 11 | . . 7 4 Classes Destroyed 7 | 2 1 2 2 Worker 1 | . 1 . . Tunneler 1 | 1 . . . Recycler 1 | 1 . . . Swarmer 4 | . . 3 1 Grunt 2 | . . . 2 Subdweller 5 | . . . 5 Assembled 7 | . . 7 . Best Kill Streak 3 | 2 1 3 2 Combat Bots Only 3 | . . 3 2 Max Kills in Single Turn 2 | 1 1 2 2 Gunslinging . | . . . . Exploded 2 | . . 2 2 Melee . | . . . . Uniques/NPCs Destroyed . | . . . . Combat | -11 -10 -10 -10 -------- Run | Yrd Mat Min Sub Hostile Shots Fired 70 | . . 34 36 Missed 12 | . . 6 6 Damage Taken 1013 | . . 404 609 Core 256 | . . 109 147 Absorbed by Shields . | . . . . Core Remaining (%) 100 | 100 . . . Volleys Fired 49 | 5 2 15 27 Largest 2 | 2 2 2 2 Hottest 100 | 70 70 70 100 Shots Fired 97 | 10 4 30 53 Gun 63 | 10 4 20 29 Cannon . | . . . . Launcher 34 | . . 10 24 Special . | . . . . Kinetic 28 | 5 2 10 11 Thermal 28 | 5 2 10 11 Explosive 34 | . . 10 24 Electromagnetic 7 | . . . 7 Robot Hit Streak 23 | 5 1 4 23 Robot Miss Streak 4 | 3 1 4 1 Penetration Max . | . . . . Secondary Targets . | . . . . Shots Hit Robots 64 | 6 2 15 41 Core Hits 42 | 3 1 14 24 Critical Kills 1 | 1 . . . Critical Parts Destroyed . | . . . . Critical Strikes 1 | 1 . . . Destroy 1 | 1 . . . Melee Attacks . | . . . . Impact . | . . . . Slashing . | . . . . Piercing . | . . . . Sneak Attacks . | . . . . Combat Hostiles . | . . . . Follow-up Attacks . | . . . . Damage Inflicted 1893 | 74 26 411 1382 Guns 778 | 74 26 167 511 Cannons . | . . . . Explosions 1115 | . . 244 871 Melee . | . . . . Ramming . | . . . . Kinetic 333 | 35 26 66 206 Thermal 323 | 39 . 101 183 Explosive 1115 | . . 244 871 Electromagnetic 122 | . . . 122 Impact . | . . . . Slashing . | . . . . Piercing . | . . . . Highest Corruption . | . . . . Average Corruption . | . . . . Corruption Purged . | . . . . Corruption Blocked . | . . . . Overload Shots . | . . . . Overflow Damage . | . . . . Projectiles . | . . . . Explosions . | . . . . Melee . | . . . . Knockbacks . | . . . . Impact . | . . . . Kinetic . | . . . . Secondary . | . . . . Self-Inflicted Damage 140 | . . 81 59 Shots 6 | . . 3 3 Rammed . | . . . . Targets Rammed . | . . . . Kicked . | . . . . Crushed . | . . . . Highest Temperature 81 | 47 9 81 1 Average Temperature 28 | 21 6 37 1 Received Heat Transfer 57 | . . . 57 Siege Activations . | . . . . Robots Corrupted . | . . . . Combat Hostiles . | . . . . Parts Fried . | . . . . Impact Corruptions . | . . . . Robots Melted . | . . . . Combat Hostiles . | . . . . Parts Melted . | . . . . Heat Transferred 632 | 111 . 296 225 Parts Sabotaged . | . . . . Parts Stolen . | . . . . Parts Stripped . | . . . . Power Chain Reactions . | . . . . Alert | -11 -10 -10 -10 ------- Run | Yrd Mat Min Sub Peak Influence 146 | 10 17 146 . Initial 6 | . 6 5 . Average 49 | 2 11 68 . Maximum Alert Level . | . . . . Low Security (%) 100 | 100 100 100 . Level 1 . | . . . . Level 2 . | . . . . Level 3 . | . . . . Level 4 . | . . . . Level 5 . | . . . . High Security . | . . . . Max Security . | . . . . Squads Dispatched . | . . . . Investigation . | . . . . Extermination . | . . . . Reinforcement . | . . . . Assault . | . . . . Garrison . | . . . . Intercept . | . . . . Searches Triggered . | . . . . Construction Impeded . | . . . . Haulers Reinforced . | . . . . Active Scanning Responses . | . . . . Cargo Convoy Interrupts . | . . . . Stealth | -11 -10 -10 -10 --------- Run | Yrd Mat Min Sub Distress Signals . | . . . . Communications Jammed . | . . . . Distress Signals . | . . . . Times Spotted 41 | . 1 29 11 Peak Tracking Total 17 | . 1 17 6 Tactical Retreats 5 | . . 4 1 Traps | -11 -10 -10 -10 ------- Run | Yrd Mat Min Sub Traps Triggered 1 | . . . 1 Indirectly . | . . . . Trap Hack Attempts . | . . . . Triggered . | . . . . Disarmed . | . . . . Reprogrammed . | . . . . Reused . | . . . . Traps Extracted . | . . . . Installed . | . . . . Triggered . | . . . . Machines | -11 -10 -10 -10 ---------- Run | Yrd Mat Min Sub Machines Disabled 1 | . . 1 . Max in Single Turn 1 | . . 1 . Machines Repaired . | . . . . Machines Dismantled . | . . . . Machines Sabotaged . | . . . . Overloaded Fab Kills . | . . . . Hacking | -11 -10 -10 -10 --------- Run | Yrd Mat Min Sub Machines Accessed 4 | . 3 1 . Terminals 4 | . 3 1 . Fabricators . | . . . . Repair Stations . | . . . . Recycling Units . | . . . . Scanalyzers . | . . . . Garrison Access . | . . . . Total Hacks 11 | . 7 4 . Successful 5 | . 4 1 . Failed 6 | . 3 3 . Catastrophic . | . . . . Database Lockouts . | . . . . Manual . | . . . . Terminals 11 | . 7 4 . Fabricators . | . . . . Repair Stations . | . . . . Recycling Units . | . . . . Scanalyzers . | . . . . Garrison Access . | . . . . Terminal Hacks 5 | . 4 1 . Recycling Unit Index 1 | . 1 . . Unreport Threat 1 | . 1 . . Locate Traps 1 | . 1 . . Dispatch Records 1 | . 1 . . Zone Layout 1 | . . 1 . Fabricator Hacks . | . . . . Repair Station Hacks . | . . . . Recycling Unit Hacks . | . . . . Scanalyzer . | . . . . Garrison Access Hacks . | . . . . Unauthorized Hacks . | . . . . Terminals . | . . . . Fabricators . | . . . . Repair Stations . | . . . . Recycling Units . | . . . . Scanalyzers . | . . . . Garrison Access . | . . . . Data Cores Recovered . | . . . . Used . | . . . . Hacking Detections 4 | . 3 1 . Full Trace Events . | . . . . Feedback Events . | . . . . Feedback Blocked . | . . . . Robot Schematics Acquired . | . . . . Robots Built . | . . . . Authchips . | . . . . Time . | . . . . Total Robot Build Rating . | . . . . Part Schematics Acquired . | . . . . Parts Built . | . . . . Authchips . | . . . . Time . | . . . . Total Part Build Rating . | . . . . Parts Repaired . | . . . . Time . | . . . . Parts Recycled . | . . . . Recycled Matter . | . . . . Retrieved Matter . | . . . . Retrieved Components . | . . . . Parts Scanalyzed . | . . . . Part Schematics Acquired . | . . . . Parts Damaged . | . . . . Bothacking | -11 -10 -10 -10 ------------ Run | Yrd Mat Min Sub Used RIF Installer . | . . . . Robots Hacked . | . . . . Non-combat . | . . . . Combat . | . . . . Robot Hacks Applied . | . . . . Relay Couplers Released . | . . . . Fabnet Peak Effective % . | . . . . Robots Rewired . | . . . . Allies Hacked . | . . . . Hacks Repelled . | . . . . Allies | -11 -10 -10 -10 -------- Run | Yrd Mat Min Sub Total Allies . | . . . . Largest Group . | . . . . Highest-Rated Group . | . . . . Highest-Rated Ally . | . . . . Total Orders . | . . . . Ally Attacks . | . . . . Total Damage . | . . . . Kills . | . . . . Allies Corrupted . | . . . . Allies Melted . | . . . . Intel | -11 -10 -10 -10 ------- Run | Yrd Mat Min Sub Robot Analysis Total . | . . . . Derelict Logs Recovered 2 | . . 1 1 Drone Launches . | . . . . Drone Recoveries . | . . . . Exploration | -11 -10 -10 -10 ------------- Run | Yrd Mat Min Sub Turns Passed 2072 | 72 181 538 1281 Spaces Moved 1372 | 49 169 382 772 Core 19 | 19 . . . Treads 201 | . . . 201 Legs . | . . . . Wheels 1152 | 30 169 382 571 Hover . | . . . . Flight . | . . . . Fastest Speed 50 | 50 90 105 110 Average Speed 114 | 83 97 106 123 Slowest Speed 160 | 100 105 115 160 Overloaded Moves . | . . . . Propulsion Burnouts . | . . . . Robots Hopped . | . . . . Cave-ins Triggered . | . . . . Exploration Rate (%) 33 | 5 26 62 41 Regions Visited 3 Branch Regions 2 Pre-discovered Areas 1 | . . 1 . Known Exits Taken . | . . . . Unknown Exits Taken 3 | 1 1 1 . Scrap Searched 12 | . . 1 11 Spaces Dug 20 | . . . 20 Terrain Destroyed 166 | . . 67 99 Melee . | . . . . Projectile . | . . . . AOE 166 | . . 67 99 Terrain Rammed . | . . . . Walls Destroyed . | . . . . Machines Disabled . | . . . . Actions | -11 -10 -10 -10 --------- Run | Yrd Mat Min Sub Total 1776 | 69 180 481 1046 Wait 286 | . . 76 210 Move 1369 | 48 168 381 772 Hop . | . . . . Pick Up 38 | 9 7 3 19 Fast Attach . | . . . . Attach 16 | 7 . 2 7 Detach . | . . . . Swap 8 | . 2 3 3 Drop 10 | . 1 1 8 Fire 49 | 5 2 15 27 Melee . | . . . . Ram . | . . . . Kick . | . . . . Crush . | . . . . Escape Stasis . | . . . . Rewire . | . . . . Trap . | . . . . Miscellaneous . | . . . . Route ------- -11/Scrapyard -10/Materials -10/Mines (discovered 2 exits: [*Mat] / [*Sub]) -10/Subcaves History --------- Turn | Location | Event 35 | -11/Scrapyard | Discovered new exit (range 15) 73 | -11/Scrapyard | Entered Materials 215 | -10/Materials | Discovered new exit (range 15) 254 | -10/Materials | Entered Mines 312 | -10/Mines | Build established: Mutant 416 | -10/Mines | Learned location of Zion (-6) 451 | -10/Mines | Assembled infested the area 757 | -10/Mines | Discovered new exit (range 5) 768 | -10/Mines | Received a Rocket Launcher from a helpful Derelict 783 | -10/Mines | Discovered new exit (range 4) 792 | -10/Mines | Entered Subcaves 914 | -10/Subcaves | Shifting Twisted Machinery released Sub. Monowheel 949 | -10/Subcaves | Shifting Twisted Machinery released Sub. Monowheel 1178 | -10/Subcaves | Core integrity fell below 50% 1615 | -10/Subcaves | Core integrity fell below 20% 1744 | -10/Subcaves | Lost 4 parts (2n2w) 1991 | -10/Subcaves | Learned 8 Materials zone layouts 2073 | -10/Subcaves | Destroyed by S-10 Pest with Light Assault Rifle Last Messages --------------- Found 19 Matter. Acquired 6 matter. Searching scrap... Found Sub. Optics. Found Spk. Treads. Found 34 Matter. Acquired Spk. Treads. 5P-HM8(O) puts together Sub. Optics. 5P-HM8(O) collects matter. Searching scrap... Found Battle Cannon. Found 25 Matter. 5P-HM8(O) collects matter. Searching scrap... Found Mak. Sword. Found Battle Rifle. Found 38 Matter. 5P-HM8(O) collects matter. Acquired Mak. Sword. S-10 Pest destroyed. Map ----- +----------------------------------------------------+ | ?????????????????????????????????????????????????? | | ?????????????????????????????????????????????????? | | ?????????????????????????????????????????????????? | | ???????#?????????????????????????????????????????? | | ?????? #?????????????????????????????????????????? | | ####? #?????????????????????????????????????????? | | # ## #?????????????????????????????????????????? | | #?????????????????????????????????????????? | | #??????????????????????????????????????????? | | # #????????????????????????????????????????????? | | # #?????????????????????????????????????????????? | | # #?????????????????????????????????????????????? | | #####?????????????????????????????????????????? | | ##????????????????????? ?????????????????? | | #???????????????????? ?????????????????? | | #???????????????????? #?????????????????? | | ##???????????????????? #?????????????????? | | ###????????????????????? #?????????????????? | | ##??????????????????????? #?????????????????? | | ## ##?????????????????????? #?????????????????? | | ?# #?????????????????????? #?????????????????? | | ### #??????????????####???? #????##???????????? | | #?# #?????????????## #???? #### ## ????????? | | #?# #??????#####??# ##??? ???????? | | ??# ##?????##[#!##??# #### !&! ???????? | | ??###??????# & ]#??# @ s% |%& ???????? | | ???????????##"]###?## ss ![ #????????? | | ###????????###]&#?## ### ## # #???????? | | # #????????# #!#### ##?#####???????????????????? | | #####????# " ## O #??????????????????????????? | | ###### ## #??????????????????????????? | | ## ###????????????????????????? | | #????????????????????????? | | #????????????????????????? | | ## #???????????????????????? | | ### #### #???????????????????????? | | #?### #??# ### #???????????????????????? | | #???# #?#######??##???????????????????????? | | #??## #???????????????????????????????????? | | ??## #???????????????????????????????????? | | #?## ##???????????????????????????????????? | | #??###????????????????????????????????????? | | #?????????????????????????????????????????? | | ####?????????????????????????????????????????? | | # ????????????????????????????????????????????? | | ##???????????????????????????????????????????? | | ?????????????????????????????????????????????? | | # ????????????????????????????????????????????? | | ?# ????????????????????????????????????????????? | | ?? #????????????????????????????????????????????? | +----------------------------------------------------+ Best States ------------- Heat Dissipation 25 Energy Generation 15 Energy Capacity 250 Matter Stores 300 Matter Capacity 300 Sight Range 16 Terrain Scan Range 16 Terrain Scan Density 10 ECM Strength 1 Armor Coverage 100 Evasion (%) 50 Recoil Reduction 2 Item Schematics ----------------- None Robot Schematics ------------------ None Fabricated ------------ Nothing Alien Tech Used ----------------- None Achievements -------------- None Challenges ------------ None Game ------ Seed CarbideResetTreads Manual? 0 Play Time 00:18:43 Cumulative 24.4 hours Start 2024.04.24 @ 17:56:09 End 2024.04.24 @ 18:13:32 Sessions 1 Manual Loads 0 Difficulty Rogue Special Mode None Game No. 64 Rogue 62 Adventurer 2 Explorer 0 Win Type - Total 0 Types 0/0/0/0/0/0/0/0/0 Lore% 22 Gallery% 29 Achievement% 22 Wizard Run 0 Options --------- Layout 1 ASCII 0 Keyboard 0 Movement Mouse Keybinds 0 Fullscreen 1 Font 16/SmallcapsGlow Map View 27x19 Zoom Use 95% Tactical HUD 0 Map Filters NONE Filters NONE Steam 1 RUN: d6f3f091-ba94-47bb-ba79-d05fdbda7b35